[Event "EWCCC Online Preliminary-D 2020"]
[Site "Online"]
[Date "2020.12.19"]
[Round "6.1"]
[White "Rubsamen, Anais"]
[Black "Donghvani, Nia"]
[Result "0-1"]
[ECO "A04"]
[WhiteElo "1692"]
[BlackElo "1985"]
[Annotator "NA"]
[PlyCount "122"]
[EventDate "2020.12.19"]
[EventType "team-tourn"]
[EventCountry "NET"]
[SourceTitle "playchess.com"]
[Source "ChessBase"]
[SourceQuality "1"]
[TimeControl "900+5"]

1. Nf3 {[%emt 0:00:02]} c5 {[%emt 0:00:17]} 2. g3 {[%emt 0:00:02]} Nc6 {[%emt 0:00:03]} 3. Bg2 {[%emt 0:00:02]} g6 {[%emt 0:00:01]} 4. O-O {[%emt 0:00:02]} Bg7 {[%emt 0:00:02]} 5. e4 {[%emt 0:00:08]} e6 {[%emt 0:00:03]} 6. c3 {[%emt 0:00:12]} Nge7 {[%emt 0:00:23]} 7. d4 {[%emt 0:00:06]} cxd4 {[%emt 0:00:02]} 8. cxd4 {[%emt 0:00:01]} d5 {[%emt 0:00:05]} 9. e5 {[%emt 0:01:15]} O-O {[%emt 0:00:04]} 10. Bg5 {[%emt 0:00:24]} Qb6 {[%emt 0:00:22]} 11. Bf6 {[%emt 0:00:15]} Qxb2 {[%emt 0:01:12]} 12. Nbd2 {[%emt 0:00:20]} Nf5 {[%emt 0:00:16]} 13. Nb3 {[%emt 0:00:13]} h5 {[%emt 0:02:00]} 14. Re1 {[%emt 0:01:01]} b6 {[%emt 0:01:30]} 15. Re2 {[%emt 0:00:08]} Qa3 {[%emt 0:00:07]} 16. Rc2 {[%emt 0:00:03]} Bb7 {[%emt 0:00:44]} 17. Bf1 {[%emt 0:01:50]} Rfc8 {[%emt 0:00:31]} 18. Bb5 {[%emt 0:00:42]} Nb4 {[%emt 0:01:15]} 19. Rxc8+ {[%emt 0:00:09]} Rxc8 {[%emt 0:00:03]} 20. Ne1 {[%emt 0:00:19]} Ba6 {[%emt 0:01:43]} 21. Bxa6 {[%emt 0:00:37]} Qxa6 {[%emt 0:00:07]} 22. h3 {[%emt 0:00:21]} Rc4 {[%emt 0:01:58]} 23. g4 {[%emt 0:00:07]} hxg4 {[%emt 0:00:03]} 24. hxg4 {[%emt 0:00:02]} Nh6 {[%emt 0:00:02]} 25. Qf3 {[%emt 0:04:47]} Qc8 {[%emt 0:01:29]} 26. Bxg7 {[%emt 0:00:37]} Kxg7 {[%emt 0:00:04]} 27. Qf6+ {[%emt 0:00:01]} Kg8 {[%emt 0:00:05]} 28. Nf3 {[%emt 0:00:03]} Rc2 {[%emt 0:01:53]} 29. Ng5 {[%emt 0:00:39]} Qe8 {[%emt 0:00:41]} 30. Rc1 {[%emt 0:00:09]} Rxc1+ {[%emt 0:00:13]} 31. Nxc1 {[%emt 0:00:02]} Nxg4 {[%emt 0:00:01]} 32. Qf3 {[%emt 0:00:07]} Nh6 {[%emt 0:00:04]} 33. a3 {[%emt 0:00:35]} Nc6 {[%emt 0:00:05]} 34. Ne2 {[%emt 0:00:03]} Qe7 {[%emt 0:00:05]} 35. Qf4 {[%emt 0:00:18]} Nf5 {[%emt 0:00:13]} 36. Ng3 {[%emt 0:00:12]} Nxg3 {[%emt 0:00:03]} 37. fxg3 {[%emt 0:00:05]} Qf8 {[%emt 0:00:10]} 38. Qh4 {[%emt 0:00:07]} Qg7 {[%emt 0:00:02]} 39. Kf2 {[%emt 0:00:29]} Ne7 {[%emt 0:00:04]} 40. g4 {[%emt 0:00:14]} Nc6 {[%emt 0:00:01]} 41. Ke3 {[%emt 0:00:03]} Na5 {[%emt 0:00:04]} 42. Kd3 {[%emt 0:00:33]} Nc4 {[%emt 0:00:02]} 43. Nf3 {[%emt 0:00:30]} Nxa3 {[%emt 0:00:06]} 44. Qd8+ {[%emt 0:00:02]} Qf8 {[%emt 0:00:03]} 45. Qc7 {[%emt 0:00:07]} Nb5 {[%emt 0:00:04]} 46. Qd7 {[%emt 0:00:03]} Qa3+ {[%emt 0:00:03]} 47. Ke2 {[%emt 0:00:02]} Qb2+ {[%emt 0:00:12]} 48. Ke3 {[%emt 0:00:03]} Qc1+ {[%emt 0:00:06]} 49. Nd2 {[%emt 0:00:04]} Qc3+ {[%emt 0:00:03]} 50. Ke2 {[%emt 0:00:09]} Nxd4+ {[%emt 0:00:02]} 51. Kd1 {[%emt 0:00:02]} Qc2+ {[%emt 0:00:04]} 52. Ke1 {[%emt 0:00:01]} Qc1+ {[%emt 0:00:01]} 53. Kf2 {[%emt 0:00:01]} Qxd2+ {[%emt 0:00:02]} 54. Kg3 {[%emt 0:00:06]} Qe3+ {[%emt 0:00:02]} 55. Kg2 {[%emt 0:00:01]} Qf3+ {[%emt 0:00:02]} 56. Kh2 {[%emt 0:00:03]} Qf4+ {[%emt 0:00:06]} 57. Kh1 {[%emt 0:00:03]} Qe4+ {[%emt 0:00:03]} 58. Kh2 {[%emt 0:00:02]} Qxe5+ {[%emt 0:00:09]} 59. Kh1 {[%emt 0:00:01]} Nf3 {[%emt 0:00:06]} 60. Qe8+ {[%emt 0:00:13]} Kg7 {[%emt 0:00:02]} 61. Qe7 {[%emt 0:00:08]} Qh2# {[%emt 0:00:03]} 0-1

[Event "EWCCC Online Preliminary-D 2020"]
[Site "Online"]
[Date "2020.12.19"]
[Round "6.3"]
[White "Balajayeva, Khanim"]
[Black "Sarakauskiene, Zivile"]
[Result "1-0"]
[ECO "B22"]
[WhiteElo "2376"]
[BlackElo "2101"]
[Annotator "NA RC"]
[PlyCount "45"]
[EventDate "2020.12.19"]
[EventType "team-tourn"]
[EventCountry "NET"]
[SourceTitle "playchess.com"]
[Source "ChessBase"]
[SourceQuality "1"]
[TimeControl "900+5"]

1. e4 {[%emt 0:00:00]} c5 {[%emt 0:00:03]} 2. c3 {[%emt 0:00:04]} d5 {[%emt 0:00:03]} 3. exd5 {[%emt 0:00:02]} Qxd5 {[%emt 0:00:02]} 4. d4 {[%emt 0:00:03]} e6 {[%emt 0:00:17]} 5. Nf3 {[%emt 0:00:05]} Nf6 {[%emt 0:00:02]} 6. Be3 {[%emt 0:00:06]} Nbd7 {[%emt 0:00:26]} 7. c4 {[%emt 0:01:32]} Qc6 {[%emt 0:00:13]} 8. Nc3 {[%emt 0:00:03]} a6 {[%emt 0:00:26]} 9. d5 {[%emt 0:01:01]} exd5 {[%emt 0:00:05]} 10. cxd5 {[%emt 0:00:02]} Qc7 {[%emt 0:00:12]} 11. Bd3 {[%emt 0:00:30]} Nb6 {[%emt 0:00:52]} 12. O-O {[%emt 0:00:16]} Be7 {[%emt 0:01:41]} 13. Bg5 {[%emt 0:01:26]} O-O {[%emt 0:00:29]} 14. Bxf6 {[%emt 0:01:04]} Bxf6 {[%emt 0:00:02]} 15. d6 {[%emt 0:00:02]} Qd8 {[%emt 0:00:24]} 16. Ne4 {[%emt 0:00:33]} Bxb2 {[%emt 0:02:40]} 17. Rb1 {[%emt 0:00:17]} Bd4 {[%emt 0:00:01]} 18. Nxd4 {[%emt 0:00:48]} cxd4 {[%emt 0:00:03]} 19. Qh5 {[%emt 0:00:35]} f5 {[%emt 0:00:11]} 20. Rxb6 {[%emt 0:00:47]} Qxb6 {[%emt 0:01:44]} 21. Bc4+ {[%emt 0:00:15]} Kh8 {[%emt 0:00:03]} 22. Ng5 {[%emt 0:00:05]} h6 {[%emt 0:00:08]} 23. Qg6 {[%emt 0:00:04]} 1-0

[Event "EWCCC Online Preliminary-D 2020"]
[Site "Online"]
[Date "2020.12.19"]
[Round "6.3"]
[White "Ciuksyte, Dagne"]
[Black "Mammadova, Gulnar"]
[Result "0-1"]
[ECO "C08"]
[WhiteElo "2294"]
[BlackElo "2382"]
[Annotator "NA"]
[PlyCount "52"]
[EventDate "2020.12.19"]
[EventType "team-tourn"]
[EventCountry "NET"]
[SourceTitle "playchess.com"]
[Source "ChessBase"]
[SourceQuality "1"]
[TimeControl "900+5"]

1. e4 {[%emt 0:00:04]} e6 {[%emt 0:00:02]} 2. d4 {[%emt 0:00:04]} d5 {[%emt 0:00:02]} 3. Nd2 {[%emt 0:00:03]} a6 {[%emt 0:00:02]} 4. Ngf3 {[%emt 0:00:29]} c5 {[%emt 0:00:16]} 5. exd5 {[%emt 0:01:33]} exd5 {[%emt 0:00:03]} 6. dxc5 {[%emt 0:00:03]} Bxc5 {[%emt 0:00:02]} 7. Bd3 {[%emt 0:00:05]} Qe7+ {[%emt 0:00:26]} 8. Be2 {[%emt 0:00:11]} Nf6 {[%emt 0:00:30]} 9. O-O {[%emt 0:00:03]} O-O {[%emt 0:00:40]} 10. Nb3 {[%emt 0:00:08]} Bb6 {[%emt 0:00:16]} 11. Bg5 {[%emt 0:00:05]} Nc6 {[%emt 0:00:19]} 12. c3 {[%emt 0:00:26]} Re8 {[%emt 0:00:37]} 13. Bd3 {[%emt 0:04:24]} Bg4 {[%emt 0:00:32]} 14. Nbd2 {[%emt 0:01:35]} Ne5 {[%emt 0:01:55]} 15. Be2 {[%emt 0:00:42]} Ng6 {[%emt 0:00:05]} 16. Re1 {[%emt 0:00:30]} h6 {[%emt 0:00:54]} 17. Bxf6 {[%emt 0:01:40]} Qxf6 {[%emt 0:00:08]} 18. h3 {[%emt 0:00:16]} Bd7 {[%emt 0:00:44]} 19. Qb3 {[%emt 0:00:24]} Nf4 {[%emt 0:00:28]} 20. Bf1 {[%emt 0:00:03]} Qg6 {[%emt 0:00:35]} 21. Ne5 {[%emt 0:02:03]} Rxe5 {[%emt 0:00:49]} 22. Rxe5 {[%emt 0:00:04]} Nxh3+ {[%emt 0:00:03]} 23. Kh2 {[%emt 0:00:03]} Nxf2 {[%emt 0:00:34]} 24. Nf3 {[%emt 0:00:29]} Ng4+ {[%emt 0:00:08]} 25. Kh1 {[%emt 0:00:04]} Nxe5 {[%emt 0:00:02]} 26. Nxe5 {[%emt 0:00:02]} Qh5# {[%emt 0:00:03]} 0-1

[Event "EWCCC Online Preliminary-D 2020"]
[Site "Online"]
[Date "2020.12.19"]
[Round "7.1"]
[White "Velikic, Adela"]
[Black "Sarakauskiene, Zivile"]
[Result "1-0"]
[ECO "E20"]
[WhiteElo "2278"]
[BlackElo "2101"]
[Annotator "RC"]
[PlyCount "75"]
[EventDate "2020.12.19"]
[EventType "team-tourn"]
[EventCountry "NET"]
[SourceTitle "playchess.com"]
[Source "ChessBase"]
[SourceQuality "1"]
[TimeControl "900+5"]

1. d4 {[%emt 0:00:00]} Nf6 {[%emt 0:00:03]} 2. c4 {[%emt 0:00:03]} e6 {[%emt 0:00:02]} 3. Nc3 {[%emt 0:00:08]} Bb4 {[%emt 0:00:04]} 4. g3 {[%emt 0:00:04]} O-O {[%emt 0:00:04]} 5. Bg2 {[%emt 0:00:08]} d5 {[%emt 0:00:23]} 6. Nf3 {[%emt 0:00:11]} dxc4 {[%emt 0:00:23]} 7. O-O {[%emt 0:00:24]} c5 {[%emt 0:02:06]} 8. dxc5 {[%emt 0:02:21]} Bxc5 {[%emt 0:01:49]} 9. Qa4 {[%emt 0:01:33]} Bd7 {[%emt 0:00:57]} 10. Qxc4 {[%emt 0:00:14]} Qc8 {[%emt 0:01:35]} 11. Ne5 {[%emt 0:00:54]} Na6 {[%emt 0:01:11]} 12. Ne4 {[%emt 0:02:01]} Nxe4 {[%emt 0:01:05]} 13. Qxe4 {[%emt 0:00:05]} Rb8 {[%emt 0:01:25]} 14. Nxd7 {[%emt 0:00:38]} Qxd7 {[%emt 0:00:05]} 15. Bf4 {[%emt 0:00:05]} Rbd8 {[%emt 0:00:42]} 16. Qxb7 {[%emt 0:01:06]} Qxb7 {[%emt 0:00:09]} 17. Bxb7 {[%emt 0:00:04]} Nb4 {[%emt 0:00:02]} 18. a3 {[%emt 0:00:31]} Nd5 {[%emt 0:00:02]} 19. Bxd5 {[%emt 0:00:39]} Rxd5 {[%emt 0:00:03]} 20. Rfd1 {[%emt 0:00:35]} Rfd8 {[%emt 0:00:07]} 21. Rxd5 {[%emt 0:00:06]} Rxd5 {[%emt 0:00:02]} 22. Rc1 {[%emt 0:00:10]} Bb6 {[%emt 0:01:46]} 23. Rc8+ {[%emt 0:00:26]} Rd8 {[%emt 0:00:03]} 24. Rxd8+ {[%emt 0:00:10]} Bxd8 {[%emt 0:00:02]} 25. e4 {[%emt 0:00:28]} g5 {[%emt 0:00:42]} 26. Be3 {[%emt 0:00:13]} a6 {[%emt 0:00:02]} 27. Kf1 {[%emt 0:00:11]} Kf8 {[%emt 0:00:04]} 28. Ke2 {[%emt 0:00:04]} Ke8 {[%emt 0:00:03]} 29. Kd3 {[%emt 0:00:04]} Kd7 {[%emt 0:00:02]} 30. Kc4 {[%emt 0:00:05]} Kc6 {[%emt 0:00:01]} 31. b4 {[%emt 0:00:06]} g4 {[%emt 0:00:41]} 32. a4 {[%emt 0:00:24]} e5 {[%emt 0:00:48]} 33. Bc5 {[%emt 0:00:16]} Bc7 {[%emt 0:00:32]} 34. b5+ {[%emt 0:00:11]} axb5+ {[%emt 0:00:01]} 35. axb5+ {[%emt 0:00:04]} Kd7 {[%emt 0:00:03]} 36. Kd5 {[%emt 0:00:06]} f6 {[%emt 0:00:08]} 37. Ba7 {[%emt 0:01:06]} Bd8 {[%emt 0:00:06]} 38. b6 {[%emt 0:00:50]} 1-0

[Event "EWCCC Online Preliminary-D 2020"]
[Site "Online"]
[Date "2020.12.19"]
[Round "7.3"]
[White "Maltsevskaya, Aleksandra"]
[Black "Lomaia, Diana"]
[Result "1-0"]
[ECO "B47"]
[WhiteElo "2311"]
[BlackElo "1946"]
[Annotator "RC"]
[PlyCount "43"]
[EventDate "2020.12.19"]
[EventType "team-tourn"]
[EventCountry "NET"]
[SourceTitle "playchess.com"]
[Source "ChessBase"]
[SourceQuality "1"]
[TimeControl "900+5"]

1. e4 {[%emt 0:00:00]} c5 {[%emt 0:00:03]} 2. Nf3 {[%emt 0:00:02]} e6 {[%emt 0:00:04]} 3. d4 {[%emt 0:00:04]} cxd4 {[%emt 0:00:01]} 4. Nxd4 {[%emt 0:00:02]} Nc6 {[%emt 0:00:02]} 5. Nc3 {[%emt 0:00:02]} Qc7 {[%emt 0:00:03]} 6. f4 {[%emt 0:00:03]} a6 {[%emt 0:00:07]} 7. Nxc6 {[%emt 0:00:03]} Qxc6 {[%emt 0:00:07]} 8. Bd3 {[%emt 0:00:01]} Bc5 {[%emt 0:00:08]} 9. Bd2 {[%emt 0:00:13]} b5 {[%emt 0:02:13]} 10. Qh5 {[%emt 0:00:10]} b4 {[%emt 0:00:45]} 11. Na4 {[%emt 0:00:08]} Ba7 {[%emt 0:01:52]} 12. Qa5 {[%emt 0:01:20]} Nf6 {[%emt 0:00:48]} 13. O-O-O {[%emt 0:02:41]} Ng4 {[%emt 0:03:23]} 14. Bxb4 {[%emt 0:01:52]} Nf2 {[%emt 0:00:23]} 15. Qg5 {[%emt 0:00:11]} d6 {[%emt 0:01:09]} 16. Qxg7 {[%emt 0:00:02]} Ke7 {[%emt 0:01:41]} 17. Qxh8 {[%emt 0:00:36]} Nxd1 {[%emt 0:00:23]} 18. Rxd1 {[%emt 0:00:05]} Bb7 {[%emt 0:01:34]} 19. Qc3 {[%emt 0:00:17]} Qxa4 {[%emt 0:00:16]} 20. Bxd6+ {[%emt 0:00:03]} Ke8 {[%emt 0:00:17]} 21. Qf6 {[%emt 0:00:10]} Be3+ {[%emt 0:00:44]} 22. Kb1 {[%emt 0:00:03]} 1-0

[Event "EWCCC Online Preliminary-D 2020"]
[Site "Online"]
[Date "2020.12.19"]
[Round "7.4"]
[White "Dubovyk, Anastasiia"]
[Black "Jose Polanco, Kenia"]
[Result "1/2-1/2"]
[ECO "B27"]
[WhiteElo "1971"]
[BlackElo "1828"]
[Annotator "NA"]
[PlyCount "127"]
[EventDate "2020.12.19"]
[EventType "team-tourn"]
[EventCountry "NET"]
[SourceTitle "playchess.com"]
[Source "ChessBase"]
[SourceQuality "1"]
[TimeControl "900+5"]

1. e4 {[%emt 0:00:02]} c5 {[%emt 0:00:05]} 2. Nf3 {[%emt 0:00:03]} g6 {[%emt 0:00:03]} 3. c3 {[%emt 0:00:04]} Bg7 {[%emt 0:00:04]} 4. d4 {[%emt 0:00:02]} cxd4 {[%emt 0:00:02]} 5. cxd4 {[%emt 0:00:01]} d5 {[%emt 0:00:03]} 6. e5 {[%emt 0:00:02]} Bg4 {[%emt 0:00:08]} 7. Nbd2 {[%emt 0:00:05]} e6 {[%emt 0:00:08]} 8. h3 {[%emt 0:00:03]} Bxf3 {[%emt 0:00:10]} 9. Nxf3 {[%emt 0:00:02]} Nc6 {[%emt 0:00:03]} 10. Bd2 {[%emt 0:00:15]} Nge7 {[%emt 0:00:18]} 11. Bb5 {[%emt 0:00:04]} O-O {[%emt 0:00:04]} 12. O-O {[%emt 0:00:04]} Rc8 {[%emt 0:00:19]} 13. Rc1 {[%emt 0:00:14]} Qb6 {[%emt 0:00:07]} 14. Bxc6 {[%emt 0:00:05]} Nxc6 {[%emt 0:00:04]} 15. Bc3 {[%emt 0:00:03]} Bh6 {[%emt 0:00:41]} 16. Bd2 {[%emt 0:00:08]} Bg7 {[%emt 0:00:08]} 17. Bc3 {[%emt 0:00:12]} Bh6 {[%emt 0:00:05]} 18. Rc2 {[%emt 0:00:07]} Nb4 {[%emt 0:00:11]} 19. Bxb4 {[%emt 0:00:07]} Qxb4 {[%emt 0:00:04]} 20. a3 {[%emt 0:00:07]} Qb6 {[%emt 0:00:18]} 21. b4 {[%emt 0:00:07]} a5 {[%emt 0:00:27]} 22. bxa5 {[%emt 0:00:15]} Qxa5 {[%emt 0:00:02]} 23. Rb2 {[%emt 0:00:07]} b5 {[%emt 0:00:34]} 24. Qb3 {[%emt 0:00:35]} Rb8 {[%emt 0:00:19]} 25. Nh2 {[%emt 0:00:05]} Rfc8 {[%emt 0:00:35]} 26. Ng4 {[%emt 0:00:05]} Bg7 {[%emt 0:00:40]} 27. Ra1 {[%emt 0:01:08]} Rc3 {[%emt 0:01:08]} 28. Qb4 {[%emt 0:00:06]} Qxb4 {[%emt 0:00:54]} 29. Rxb4 {[%emt 0:00:06]} Bf8 {[%emt 0:01:04]} 30. Rbb1 {[%emt 0:01:03]} Bxa3 {[%emt 0:00:40]} 31. Ne3 {[%emt 0:00:07]} b4 {[%emt 0:01:02]} 32. Ra2 {[%emt 0:00:17]} Rbc8 {[%emt 0:00:14]} 33. Kh2 {[%emt 0:00:11]} Rd3 {[%emt 0:00:09]} 34. Rc2 {[%emt 0:00:40]} Rxc2 {[%emt 0:00:15]} 35. Nxc2 {[%emt 0:00:02]} Rd2 {[%emt 0:00:13]} 36. Nxb4 {[%emt 0:00:03]} Bxb4 {[%emt 0:00:10]} 37. Rxb4 {[%emt 0:00:03]} Rxf2 {[%emt 0:00:02]} 38. Kg3 {[%emt 0:00:04]} Rd2 {[%emt 0:00:07]} 39. Kf3 {[%emt 0:00:06]} Kg7 {[%emt 0:00:03]} 40. h4 {[%emt 0:00:04]} g5 {[%emt 0:00:14]} 41. hxg5 {[%emt 0:00:23]} Kg6 {[%emt 0:00:04]} 42. g3 {[%emt 0:04:07]} Kxg5 {[%emt 0:00:06]} 43. Ke3 {[%emt 0:00:07]} Rg2 {[%emt 0:00:07]} 44. Kf3 {[%emt 0:00:03]} Rd2 {[%emt 0:00:17]} 45. Ke3 {[%emt 0:00:02]} Rd1 {[%emt 0:00:04]} 46. Rb8 {[%emt 0:00:18]} h5 {[%emt 0:00:24]} 47. Rg8+ {[%emt 0:00:12]} Kh6 {[%emt 0:00:20]} 48. g4 {[%emt 0:00:33]} hxg4 {[%emt 0:00:07]} 49. Rxg4 {[%emt 0:00:04]} Rh1 {[%emt 0:00:21]} 50. Rg3 {[%emt 0:00:12]} Rh4 {[%emt 0:00:07]} 51. Rg2 {[%emt 0:00:06]} Kh7 {[%emt 0:00:07]} 52. Rg1 {[%emt 0:00:26]} Re4+ {[%emt 0:00:03]} 53. Kd3 {[%emt 0:00:02]} Rh4 {[%emt 0:00:04]} 54. Ke3 {[%emt 0:00:18]} Rh6 {[%emt 0:00:06]} 55. Rf1 {[%emt 0:00:38]} Kg7 {[%emt 0:00:06]} 56. Rg1+ {[%emt 0:00:04]} Rg6 {[%emt 0:00:03]} 57. Rf1 {[%emt 0:00:01]} f6 {[%emt 0:00:08]} 58. exf6+ {[%emt 0:00:04]} Rxf6 {[%emt 0:00:03]} 59. Rxf6 {[%emt 0:01:16]} Kxf6 {[%emt 0:00:02]} 60. Kf4 {[%emt 0:00:02]} Kf7 {[%emt 0:00:24]} 61. Kf3 {[%emt 0:00:03]} Kf6 {[%emt 0:00:15]} 62. Kf4 {[%emt 0:00:02]} Kf7 {[%emt 0:00:04]} 63. Kf3 {[%emt 0:00:01]} Kf6 {[%emt 0:00:07]} 64. Kf4 {[%emt 0:00:01]} 1/2-1/2

[Event "EWCCC Online Preliminary-D 2020"]
[Site "Online"]
[Date "2020.12.19"]
[Round "7.4"]
[White "Mashchenko, Tamila"]
[Black "Rubsamen, Anais"]
[Result "1-0"]
[ECO "A24"]
[WhiteElo "1768"]
[BlackElo "1692"]
[Annotator "NA"]
[PlyCount "53"]
[EventDate "2020.12.19"]
[EventType "team-tourn"]
[EventCountry "NET"]
[SourceTitle "playchess.com"]
[Source "ChessBase"]
[SourceQuality "1"]
[TimeControl "900+5"]

1. c4 {[%emt 0:00:06]} g6 {[%emt 0:00:03]} 2. Nc3 {[%emt 0:00:03]} Bg7 {[%emt 0:00:03]} 3. g3 {[%emt 0:00:02]} Nf6 {[%emt 0:00:03]} 4. Bg2 {[%emt 0:00:03]} c6 {[%emt 0:00:04]} 5. e4 {[%emt 0:00:05]} e5 {[%emt 0:00:06]} 6. Nge2 {[%emt 0:00:03]} d6 {[%emt 0:00:04]} 7. O-O {[%emt 0:00:03]} O-O {[%emt 0:00:04]} 8. d3 {[%emt 0:00:06]} Bg4 {[%emt 0:00:05]} 9. h3 {[%emt 0:00:03]} Bxe2 {[%emt 0:00:02]} 10. Qxe2 {[%emt 0:00:18]} Na6 {[%emt 0:00:08]} 11. f4 {[%emt 0:00:07]} Nc5 {[%emt 0:00:08]} 12. f5 {[%emt 0:00:11]} Nh5 {[%emt 0:00:15]} 13. Kh2 {[%emt 0:00:17]} Nf6 {[%emt 0:01:14]} 14. b4 {[%emt 0:00:20]} Na6 {[%emt 0:00:08]} 15. Rb1 {[%emt 0:00:07]} Nc7 {[%emt 0:00:48]} 16. g4 {[%emt 0:00:19]} d5 {[%emt 0:00:05]} 17. g5 {[%emt 0:00:27]} Nh5 {[%emt 0:00:13]} 18. f6 {[%emt 0:00:17]} Bh8 {[%emt 0:00:05]} 19. exd5 {[%emt 0:00:12]} cxd5 {[%emt 0:00:40]} 20. Nxd5 {[%emt 0:00:03]} Nxd5 {[%emt 0:00:07]} 21. Bxd5 {[%emt 0:00:04]} Nf4 {[%emt 0:00:05]} 22. Bxf4 {[%emt 0:00:08]} exf4 {[%emt 0:00:02]} 23. Qf3 {[%emt 0:00:43]} h6 {[%emt 0:00:14]} 24. Qxf4 {[%emt 0:00:24]} hxg5 {[%emt 0:00:02]} 25. Qxg5 {[%emt 0:00:04]} Re8 {[%emt 0:00:09]} 26. Qxg6+ {[%emt 0:01:51]} Kf8 {[%emt 0:00:04]} 27. Qxf7# {[%emt 0:00:02]} 1-0

[Event "EWCCC Online Preliminary-D 2020"]
[Site "Online"]
[Date "2020.12.19"]
[Round "7.4"]
[White "Berezovsky, Fiorina"]
[Black "Tsirulnik, Anna"]
[Result "1-0"]
[ECO "D94"]
[WhiteElo "1665"]
[BlackElo "1854"]
[Annotator "NA"]
[PlyCount "75"]
[EventDate "2020.12.19"]
[EventType "team-tourn"]
[EventCountry "NET"]
[SourceTitle "playchess.com"]
[Source "ChessBase"]
[SourceQuality "1"]
[TimeControl "900+5"]

1. d4 {[%emt 0:00:00]} Nf6 {[%emt 0:00:03]} 2. Nf3 {[%emt 0:00:06]} g6 {[%emt 0:00:02]} 3. c4 {[%emt 0:00:03]} Bg7 {[%emt 0:00:02]} 4. e3 {[%emt 0:00:05]} O-O {[%emt 0:00:07]} 5. Be2 {[%emt 0:00:05]} d5 {[%emt 0:00:01]} 6. Nc3 {[%emt 0:00:04]} c5 {[%emt 0:00:32]} 7. O-O {[%emt 0:00:06]} cxd4 {[%emt 0:00:08]} 8. exd4 {[%emt 0:00:05]} Nc6 {[%emt 0:00:05]} 9. cxd5 {[%emt 0:00:06]} Nxd5 {[%emt 0:00:03]} 10. Qb3 {[%emt 0:00:33]} Nb6 {[%emt 0:00:17]} 11. Rd1 {[%emt 0:00:08]} Bg4 {[%emt 0:00:11]} 12. Be3 {[%emt 0:00:13]} e6 {[%emt 0:00:16]} 13. h3 {[%emt 0:00:35]} Bxf3 {[%emt 0:00:12]} 14. Bxf3 {[%emt 0:00:04]} Qd7 {[%emt 0:00:32]} 15. Ne4 {[%emt 0:00:19]} Na5 {[%emt 0:00:38]} 16. Qc3 {[%emt 0:00:09]} Nac4 {[%emt 0:00:58]} 17. Nc5 {[%emt 0:00:08]} Qb5 {[%emt 0:00:17]} 18. b3 {[%emt 0:00:17]} Qxc5 {[%emt 0:00:49]} 19. bxc4 {[%emt 0:00:17]} Qxc4 {[%emt 0:00:08]} 20. Qxc4 {[%emt 0:00:09]} Nxc4 {[%emt 0:00:02]} 21. Rac1 {[%emt 0:00:04]} Na5 {[%emt 0:00:29]} 22. Rc7 {[%emt 0:00:28]} Rac8 {[%emt 0:00:05]} 23. Rdc1 {[%emt 0:00:24]} Rxc7 {[%emt 0:00:09]} 24. Rxc7 {[%emt 0:00:05]} Rb8 {[%emt 0:00:04]} 25. d5 {[%emt 0:00:27]} Be5 {[%emt 0:00:21]} 26. Rd7 {[%emt 0:00:41]} Rc8 {[%emt 0:00:47]} 27. g3 {[%emt 0:00:20]} Rc7 {[%emt 0:00:30]} 28. Rd8+ {[%emt 0:00:09]} Kg7 {[%emt 0:00:02]} 29. Bxa7 {[%emt 0:00:14]} exd5 {[%emt 0:00:36]} 30. Rxd5 {[%emt 0:00:12]} Rc1+ {[%emt 0:00:19]} 31. Kg2 {[%emt 0:00:06]} Nc6 {[%emt 0:00:03]} 32. Rb5 {[%emt 0:00:15]} Nxa7 {[%emt 0:00:42]} 33. Rxe5 {[%emt 0:00:25]} Kf6 {[%emt 0:00:29]} 34. Ra5 {[%emt 0:00:19]} Nc6 {[%emt 0:00:02]} 35. Rb5 {[%emt 0:00:15]} Ra1 {[%emt 0:00:38]} 36. Rxb7 {[%emt 0:00:16]} Na5 {[%emt 0:00:10]} 37. Rb6+ {[%emt 0:00:12]} Ke5 {[%emt 0:00:03]} 38. Rb5+ {[%emt 0:00:04]} 1-0

[Event "EWCCC Online Preliminary-D 2020"]
[Site "Online"]
[Date "2020.12.19"]
[Round "8.1"]
[White "Tsirulnik, Anna"]
[Black "Maltsevskaya, Aleksandra"]
[Result "0-1"]
[ECO "E90"]
[WhiteElo "1854"]
[BlackElo "2311"]
[Annotator "NA RC"]
[PlyCount "88"]
[EventDate "2020.12.19"]
[EventType "team-tourn"]
[EventCountry "NET"]
[SourceTitle "playchess.com"]
[Source "ChessBase"]
[SourceQuality "1"]
[TimeControl "900+5"]

1. d4 {[%emt 0:00:00]} Nf6 {[%emt 0:00:02]} 2. c4 {[%emt 0:00:03]} g6 {[%emt 0:00:02]} 3. Nc3 {[%emt 0:00:02]} Bg7 {[%emt 0:00:01]} 4. e4 {[%emt 0:00:01]} d6 {[%emt 0:00:01]} 5. h3 {[%emt 0:00:01]} O-O {[%emt 0:00:01]} 6. Nf3 {[%emt 0:00:02]} Na6 {[%emt 0:00:01]} 7. Be3 {[%emt 0:00:06]} c5 {[%emt 0:00:06]} 8. dxc5 {[%emt 0:00:30]} Nxc5 {[%emt 0:00:10]} 9. e5 {[%emt 0:00:17]} Nfe4 {[%emt 0:00:02]} 10. Nxe4 {[%emt 0:00:17]} Nxe4 {[%emt 0:00:02]} 11. exd6 {[%emt 0:01:15]} Qa5+ {[%emt 0:00:14]} 12. Bd2 {[%emt 0:00:12]} Qb6 {[%emt 0:00:24]} 13. Be3 {[%emt 0:00:27]} Qxb2 {[%emt 0:00:02]} 14. dxe7 {[%emt 0:00:13]} Re8 {[%emt 0:00:08]} 15. Rb1 {[%emt 0:02:35]} Qxa2 {[%emt 0:00:04]} 16. Bd3 {[%emt 0:01:26]} Nc3 {[%emt 0:00:12]} 17. Qb3 {[%emt 0:00:09]} Qa5 {[%emt 0:00:22]} 18. Qb4 {[%emt 0:01:36]} Nxb1 {[%emt 0:01:15]} 19. Qxa5 {[%emt 0:00:02]} Bc3+ {[%emt 0:00:02]} 20. Qxc3 {[%emt 0:00:05]} Nxc3 {[%emt 0:00:02]} 21. Kd2 {[%emt 0:00:21]} Na4 {[%emt 0:00:09]} 22. Ra1 {[%emt 0:00:06]} Nb2 {[%emt 0:00:02]} 23. Rxa7 {[%emt 0:00:30]} Rxa7 {[%emt 0:00:05]} 24. Bxa7 {[%emt 0:00:02]} Nxd3 {[%emt 0:00:02]} 25. Kxd3 {[%emt 0:00:02]} Rxe7 {[%emt 0:00:04]} 26. Nd4 {[%emt 0:00:19]} h5 {[%emt 0:00:07]} 27. Bb6 {[%emt 0:00:10]} Bd7 {[%emt 0:00:13]} 28. c5 {[%emt 0:00:05]} Re1 {[%emt 0:00:05]} 29. h4 {[%emt 0:00:25]} f6 {[%emt 0:00:13]} 30. g3 {[%emt 0:00:28]} Kf7 {[%emt 0:00:03]} 31. Nf3 {[%emt 0:00:13]} Bb5+ {[%emt 0:00:05]} 32. Kc3 {[%emt 0:00:32]} Rf1 {[%emt 0:00:02]} 33. Nd2 {[%emt 0:00:31]} Rc1+ {[%emt 0:00:12]} 34. Kd4 {[%emt 0:00:16]} Bc6 {[%emt 0:00:02]} 35. Bc7 {[%emt 0:00:20]} g5 {[%emt 0:00:08]} 36. Bd6 {[%emt 0:00:30]} Ke6 {[%emt 0:00:14]} 37. Ke3 {[%emt 0:00:42]} b5 {[%emt 0:00:05]} 38. Ke2 {[%emt 0:00:54]} b4 {[%emt 0:00:05]} 39. Nb3 {[%emt 0:00:11]} Rc3 {[%emt 0:00:02]} 40. Nd4+ {[%emt 0:00:03]} Kd5 {[%emt 0:00:01]} 41. Nf3 {[%emt 0:00:22]} b3 {[%emt 0:00:08]} 42. Nd2 {[%emt 0:00:25]} b2 {[%emt 0:00:05]} 43. hxg5 {[%emt 0:00:17]} Bb5+ {[%emt 0:00:02]} 44. Ke1 {[%emt 0:00:49]} Rc1# {[%emt 0:00:02]} 0-1